[Event "Razuvaev Memorial 2020"]
[Site "Moscow"]
[Date "2020.11.06"]
[Round "3.3"]
[White "Tomashevsky, Evgeny"]
[Black "Motylev, Alexander"]
[Result "1-0"]
[ECO "A06"]
[WhiteElo "2681"]
[BlackElo "2618"]
[Annotator "ChessBase"]
[PlyCount "77"]
[EventDate "2020.11.06"]
[EventCountry "RUS"]
[SourceTitle "playchess.com"]
[Source "ChessBase"]
[SourceQuality "1"]
[TimeControl "300+3"]

1. Nf3 {[%emt 0:00:01]} d5 {[%emt 0:00:03]} 2. b3 {[%emt 0:00:02]} Bg4 {[%emt 0:00:04]} 3. e3 {[%emt 0:00:03]} Nd7 {[%emt 0:00:05]} 4. Bb2 {[%emt 0:00:03]} e5 {[%emt 0:00:10]} 5. h3 {[%emt 0:00:03]} Bh5 {[%emt 0:00:09]} 6. g4 {[%emt 0:00:31]} Bg6 {[%emt 0:00:02]} 7. Nxe5 {[%emt 0:00:01]} Nxe5 {[%emt 0:00:53]} 8. Bxe5 {[%emt 0:00:02]} Be4 {[%emt 0:00:12]} 9. Rg1 {[%emt 0:00:17]} Qe7 {[%emt 0:00:03]} 10. d4 {[%emt 0:00:46]} O-O-O {[%emt 0:00:08]} 11. Nd2 {[%emt 0:00:15]} f6 {[%emt 0:00:23]} 12. Bg3 {[%emt 0:00:05]} Qb4 {[%emt 0:00:08]} 13. c3 {[%emt 0:00:10]} Qb6 {[%emt 0:01:49]} 14. Nxe4 {[%emt 0:01:03]} dxe4 {[%emt 0:00:02]} 15. Qc2 {[%emt 0:00:05]} Ne7 {[%emt 0:00:12]} 16. Qxe4 {[%emt 0:00:38]} Nd5 {[%emt 0:00:01]} 17. Bc4 {[%emt 0:00:01]} Nxc3 {[%emt 0:00:29]} 18. Qe6+ {[%emt 0:00:02]} Kb8 {[%emt 0:00:02]} 19. Qxb6 {[%emt 0:00:35]} axb6 {[%emt 0:00:00]} 20. Bd3 {[%emt 0:00:08]} Ba3 {[%emt 0:00:06]} 21. Kd2 {[%emt 0:00:03]} Nd5 {[%emt 0:00:09]} 22. Ke2 {[%emt 0:00:08]} b5 {[%emt 0:00:04]} 23. Kf3 {[%emt 0:00:03]} Nc3 {[%emt 0:00:05]} 24. h4 {[%emt 0:00:14]} h6 {[%emt 0:00:20]} 25. Rh1 {[%emt 0:00:03]} b4 {[%emt 0:00:06]} 26. Bf4 {[%emt 0:00:11]} g5 {[%emt 0:00:04]} 27. hxg5 {[%emt 0:00:03]} hxg5 {[%emt 0:00:01]} 28. Bg3 {[%emt 0:00:03]} Bb2 {[%emt 0:00:02]} 29. Rag1 {[%emt 0:00:02]} Nxa2 {[%emt 0:00:05]} 30. Rh5 {[%emt 0:00:01]} Rxh5 {[%emt 0:00:20]} 31. gxh5 {[%emt 0:00:02]} Rh8 {[%emt 0:00:00]} 32. Rh1 {[%emt 0:00:02]} Rh6 {[%emt 0:00:02]} 33. Kg4 {[%emt 0:00:03]} Nc3 {[%emt 0:00:01]} 34. f4 {[%emt 0:00:14]} gxf4 {[%emt 0:00:02]} 35. Bxf4 {[%emt 0:00:01]} Rh8 {[%emt 0:00:00]} 36. Bc4 {[%emt 0:00:07]} Ne4 {[%emt 0:00:09]} 37. Kf5 {[%emt 0:00:05]} Nd6+ {[%emt 0:00:09]} 38. Bxd6 {[%emt 0:00:01]} cxd6 {[%emt 0:00:01]} 39. h6 {[%emt 0:00:01]} 1-0

[Event "Razuvaev Memorial 2020"]
[Site "Moscow"]
[Date "2020.11.06"]
[Round "3.4"]
[White "Kobalia, Mikhail"]
[Black "Gelfand, Boris"]
[Result "1/2-1/2"]
[ECO "B30"]
[WhiteElo "2569"]
[BlackElo "2693"]
[Annotator "ChessBase"]
[PlyCount "69"]
[EventDate "2020.11.06"]
[EventCountry "RUS"]
[SourceTitle "playchess.com"]
[Source "ChessBase"]
[SourceQuality "1"]
[TimeControl "300+3"]

1. e4 {[%emt 0:00:03]} c5 {[%emt 0:00:02]} 2. Nf3 {[%emt 0:00:01]} Nc6 {[%emt 0:00:01]} 3. Bb5 {[%emt 0:00:03]} e6 {[%emt 0:00:01]} 4. O-O {[%emt 0:00:05]} Nge7 {[%emt 0:00:01]} 5. d4 {[%emt 0:00:02]} cxd4 {[%emt 0:00:02]} 6. Nxd4 {[%emt 0:00:00]} Ng6 {[%emt 0:00:00]} 7. Be2 {[%emt 0:00:03]} Be7 {[%emt 0:00:05]} 8. c4 {[%emt 0:00:03]} O-O {[%emt 0:00:02]} 9. Nc3 {[%emt 0:00:02]} b6 {[%emt 0:00:22]} 10. Be3 {[%emt 0:00:19]} Bb7 {[%emt 0:00:01]} 11. Nxc6 {[%emt 0:00:06]} Bxc6 {[%emt 0:00:07]} 12. Qd2 {[%emt 0:00:04]} f5 {[%emt 0:00:22]} 13. exf5 {[%emt 0:00:06]} Nh4 {[%emt 0:00:02]} 14. f3 {[%emt 0:00:09]} Nxf5 {[%emt 0:00:05]} 15. Bf2 {[%emt 0:00:13]} Bg5 {[%emt 0:00:16]} 16. Qd3 {[%emt 0:00:05]} Bf4 {[%emt 0:00:05]} 17. Ne4 {[%emt 0:00:04]} Qc7 {[%emt 0:00:54]} 18. g3 {[%emt 0:00:02]} Be5 {[%emt 0:00:01]} 19. Rab1 {[%emt 0:00:02]} d5 {[%emt 0:00:09]} 20. Ng5 {[%emt 0:00:18]} Qe7 {[%emt 0:00:02]} 21. f4 {[%emt 0:00:02]} dxc4 {[%emt 0:00:28]} 22. Qxc4 {[%emt 0:00:06]} Bd5 {[%emt 0:00:01]} 23. Qa4 {[%emt 0:00:10]} Bf6 {[%emt 0:00:41]} 24. Ne4 {[%emt 0:00:10]} Rac8 {[%emt 0:00:08]} 25. Ba6 {[%emt 0:00:21]} Rc7 {[%emt 0:00:09]} 26. Rfe1 {[%emt 0:00:03]} Nd6 {[%emt 0:00:18]} 27. Nxf6+ {[%emt 0:00:08]} Qxf6 {[%emt 0:00:03]} 28. Qd4 {[%emt 0:01:01]} Qg6 {[%emt 0:00:14]} 29. Rbc1 {[%emt 0:00:03]} Nf5 {[%emt 0:00:18]} 30. Rxc7 {[%emt 0:00:20]} Nxd4 {[%emt 0:00:06]} 31. Bxd4 {[%emt 0:00:00]} Rf7 {[%emt 0:00:14]} 32. Rc8+ {[%emt 0:00:02]} Rf8 {[%emt 0:00:01]} 33. Rc7 {[%emt 0:00:00]} Rf7 {[%emt 0:00:06]} 34. Rc8+ {[%emt 0:00:19]} Rf8 {[%emt 0:00:01]} 35. Rc7 {[%emt 0:00:00]} 1/2-1/2

[Event "Razuvaev Memorial 2020"]
[Site "Moscow"]
[Date "2020.11.06"]
[Round "4.1"]
[White "Kramnik, Vladimir"]
[Black "Gelfand, Boris"]
[Result "1/2-1/2"]
[ECO "A30"]
[WhiteElo "2797"]
[BlackElo "2693"]
[Annotator "ChessBase"]
[PlyCount "83"]
[EventDate "2020.11.06"]
[EventCountry "RUS"]
[SourceTitle "playchess.com"]
[Source "ChessBase"]
[SourceQuality "1"]
[TimeControl "300+3"]

1. c4 {[%emt 0:00:02]} c5 {[%emt 0:00:02]} 2. b3 {[%emt 0:00:02]} Nf6 {[%emt 0:00:03]} 3. Bb2 {[%emt 0:00:01]} Nc6 {[%emt 0:00:06]} 4. Nf3 {[%emt 0:00:02]} d5 {[%emt 0:00:00]} 5. cxd5 {[%emt 0:00:02]} Nxd5 {[%emt 0:00:01]} 6. Nc3 {[%emt 0:00:02]} e5 {[%emt 0:00:02]} 7. e3 {[%emt 0:00:07]} Nxc3 {[%emt 0:00:01]} 8. Bxc3 {[%emt 0:00:01]} Bd6 {[%emt 0:00:02]} 9. Qc2 {[%emt 0:00:16]} Qe7 {[%emt 0:00:02]} 10. Bd3 {[%emt 0:00:11]} Bd7 {[%emt 0:00:04]} 11. Be4 {[%emt 0:00:19]} g6 {[%emt 0:00:58]} 12. O-O {[%emt 0:00:03]} f5 {[%emt 0:00:14]} 13. Bd5 {[%emt 0:00:02]} O-O-O {[%emt 0:00:01]} 14. d4 {[%emt 0:00:20]} cxd4 {[%emt 0:00:23]} 15. exd4 {[%emt 0:00:01]} e4 {[%emt 0:00:01]} 16. Ne5 {[%emt 0:00:09]} Kb8 {[%emt 0:00:19]} 17. Bxc6 {[%emt 0:00:06]} Bxc6 {[%emt 0:00:23]} 18. Nxc6+ {[%emt 0:00:02]} bxc6 {[%emt 0:00:01]} 19. d5 {[%emt 0:00:01]} cxd5 {[%emt 0:00:21]} 20. Bxh8 {[%emt 0:00:03]} Rxh8 {[%emt 0:00:01]} 21. Rad1 {[%emt 0:01:08]} Rd8 {[%emt 0:00:14]} 22. g3 {[%emt 0:00:09]} Bc7 {[%emt 0:00:22]} 23. b4 {[%emt 0:00:15]} d4 {[%emt 0:00:07]} 24. a4 {[%emt 0:00:01]} d3 {[%emt 0:00:07]} 25. Qc4 {[%emt 0:00:05]} Qd7 {[%emt 0:00:28]} 26. a5 {[%emt 0:00:18]} Qd5 {[%emt 0:00:02]} 27. Qc1 {[%emt 0:00:30]} Be5 {[%emt 0:00:17]} 28. Qh6 {[%emt 0:00:21]} Bd4 {[%emt 0:00:18]} 29. b5 {[%emt 0:00:04]} Qe5 {[%emt 0:00:21]} 30. b6 {[%emt 0:00:58]} axb6 {[%emt 0:00:04]} 31. axb6 {[%emt 0:00:08]} e3 {[%emt 0:00:10]} 32. Rxd3 {[%emt 0:00:02]} exf2+ {[%emt 0:00:08]} 33. Kg2 {[%emt 0:00:03]} Qe4+ {[%emt 0:00:03]} 34. Rf3 {[%emt 0:00:05]} Bxb6 {[%emt 0:00:08]} 35. Qxh7 {[%emt 0:00:20]} Rd3 {[%emt 0:00:13]} 36. Qg8+ {[%emt 0:00:02]} Kb7 {[%emt 0:00:09]} 37. Qf7+ {[%emt 0:00:03]} Kb8 {[%emt 0:00:13]} 38. Qf8+ {[%emt 0:00:13]} Kb7 {[%emt 0:00:11]} 39. Qg7+ {[%emt 0:00:02]} Kb8 {[%emt 0:00:04]} 40. Qg8+ {[%emt 0:00:04]} Kb7 {[%emt 0:00:00]} 41. Qg7+ {[%emt 0:00:03]} Kb8 {[%emt 0:00:06]} 42. Qg8+ {[%emt 0:00:05]} 1/2-1/2

[Event "Razuvaev Memorial 2020"]
[Site "Moscow"]
[Date "2020.11.06"]
[Round "4.2"]
[White "Motylev, Alexander"]
[Black "Kobalia, Mikhail"]
[Result "1/2-1/2"]
[ECO "C48"]
[WhiteElo "2618"]
[BlackElo "2569"]
[Annotator "ChessBase"]
[PlyCount "47"]
[EventDate "2020.11.06"]
[EventCountry "RUS"]
[SourceTitle "playchess.com"]
[Source "ChessBase"]
[SourceQuality "1"]
[TimeControl "300+3"]

1. e4 {[%emt 0:00:01]} e5 {[%emt 0:00:05]} 2. Nf3 {[%emt 0:00:03]} Nc6 {[%emt 0:00:03]} 3. Bb5 {[%emt 0:00:02]} Nf6 {[%emt 0:00:01]} 4. d3 {[%emt 0:00:02]} Bc5 {[%emt 0:00:02]} 5. Nc3 {[%emt 0:00:02]} O-O {[%emt 0:00:04]} 6. Bxc6 {[%emt 0:00:02]} dxc6 {[%emt 0:00:01]} 7. Qe2 {[%emt 0:00:01]} Nd7 {[%emt 0:00:08]} 8. Bg5 {[%emt 0:00:02]} f6 {[%emt 0:00:18]} 9. Be3 {[%emt 0:00:02]} Bd6 {[%emt 0:00:01]} 10. O-O-O {[%emt 0:00:05]} c5 {[%emt 0:00:01]} 11. Nh4 {[%emt 0:00:01]} Nb8 {[%emt 0:00:04]} 12. Nf5 {[%emt 0:00:02]} Nc6 {[%emt 0:00:02]} 13. Qg4 {[%emt 0:00:11]} Bxf5 {[%emt 0:00:26]} 14. exf5 {[%emt 0:00:03]} Nd4 {[%emt 0:00:01]} 15. Qe4 {[%emt 0:01:44]} b5 {[%emt 0:00:25]} 16. Bxd4 {[%emt 0:00:37]} cxd4 {[%emt 0:00:05]} 17. Nxb5 {[%emt 0:00:21]} Kh8 {[%emt 0:00:24]} 18. c4 {[%emt 0:01:01]} dxc3 {[%emt 0:00:13]} 19. Nxc3 {[%emt 0:00:04]} Bc5 {[%emt 0:00:01]} 20. Qd5 {[%emt 0:00:17]} Qe7 {[%emt 0:00:24]} 21. Qe6 {[%emt 0:00:02]} Qd8 {[%emt 0:00:04]} 22. Qd5 {[%emt 0:00:01]} Qe7 {[%emt 0:00:12]} 23. Qe6 {[%emt 0:00:01]} Qd8 {[%emt 0:00:01]} 24. Qd5 {[%emt 0:00:01]} 1/2-1/2

[Event "Razuvaev Memorial 2020"]
[Site "Moscow"]
[Date "2020.11.06"]
[Round "4.3"]
[White "Lautier, Joel"]
[Black "Tomashevsky, Evgeny"]
[Result "0-1"]
[ECO "E16"]
[WhiteElo "2658"]
[BlackElo "2681"]
[Annotator "ChessBase"]
[PlyCount "126"]
[EventDate "2020.11.06"]
[EventCountry "RUS"]
[SourceTitle "playchess.com"]
[Source "ChessBase"]
[SourceQuality "1"]
[TimeControl "300+3"]

1. d4 {[%emt 0:00:01]} Nf6 {[%emt 0:00:03]} 2. c4 {[%emt 0:00:01]} e6 {[%emt 0:00:02]} 3. Nf3 {[%emt 0:00:02]} b6 {[%emt 0:00:08]} 4. g3 {[%emt 0:00:02]} Bb7 {[%emt 0:00:11]} 5. Bg2 {[%emt 0:00:02]} Bb4+ {[%emt 0:00:02]} 6. Bd2 {[%emt 0:00:05]} a5 {[%emt 0:00:02]} 7. O-O {[%emt 0:00:03]} O-O {[%emt 0:00:02]} 8. Bg5 {[%emt 0:00:06]} Be7 {[%emt 0:00:14]} 9. Nc3 {[%emt 0:00:03]} Ne4 {[%emt 0:00:18]} 10. Bxe7 {[%emt 0:00:03]} Qxe7 {[%emt 0:00:02]} 11. Qc2 {[%emt 0:01:03]} Nxc3 {[%emt 0:00:04]} 12. Qxc3 {[%emt 0:00:01]} d6 {[%emt 0:00:05]} 13. Rfe1 {[%emt 0:00:17]} Nd7 {[%emt 0:00:19]} 14. e4 {[%emt 0:00:02]} Rad8 {[%emt 0:00:10]} 15. b3 {[%emt 0:00:15]} e5 {[%emt 0:00:20]} 16. a3 {[%emt 0:00:06]} c5 {[%emt 0:01:06]} 17. d5 {[%emt 0:00:07]} Nf6 {[%emt 0:00:01]} 18. b4 {[%emt 0:00:08]} axb4 {[%emt 0:00:04]} 19. axb4 {[%emt 0:00:02]} Ra8 {[%emt 0:00:00]} 20. Nd2 {[%emt 0:00:03]} Rfb8 {[%emt 0:00:07]} 21. b5 {[%emt 0:00:34]} Bc8 {[%emt 0:00:09]} 22. Ra3 {[%emt 0:00:16]} Rxa3 {[%emt 0:00:24]} 23. Qxa3 {[%emt 0:00:02]} Bb7 {[%emt 0:00:21]} 24. Ra1 {[%emt 0:00:05]} Qd8 {[%emt 0:00:06]} 25. Qb2 {[%emt 0:00:09]} Ra8 {[%emt 0:00:01]} 26. Bh3 {[%emt 0:00:03]} h6 {[%emt 0:00:12]} 27. f3 {[%emt 0:00:05]} Qb8 {[%emt 0:00:06]} 28. Ra3 {[%emt 0:00:05]} Bc8 {[%emt 0:00:08]} 29. Bxc8 {[%emt 0:00:11]} Qxc8 {[%emt 0:00:02]} 30. Qa1 {[%emt 0:00:02]} Rxa3 {[%emt 0:00:01]} 31. Qxa3 {[%emt 0:00:02]} Qb8 {[%emt 0:00:11]} 32. Qa6 {[%emt 0:00:16]} g6 {[%emt 0:00:04]} 33. Nf1 {[%emt 0:00:05]} Kg7 {[%emt 0:00:04]} 34. Ne3 {[%emt 0:00:02]} h5 {[%emt 0:00:01]} 35. h4 {[%emt 0:00:03]} Nd7 {[%emt 0:00:04]} 36. Kg2 {[%emt 0:00:02]} Kf8 {[%emt 0:00:06]} 37. Kf2 {[%emt 0:00:05]} Ke7 {[%emt 0:00:01]} 38. Ke2 {[%emt 0:00:04]} Kd8 {[%emt 0:00:16]} 39. Kd3 {[%emt 0:00:05]} Ke7 {[%emt 0:00:03]} 40. Qa1 {[%emt 0:00:07]} Qf8 {[%emt 0:00:09]} 41. Qa7 {[%emt 0:00:03]} Qb8 {[%emt 0:00:02]} 42. Qa1 {[%emt 0:00:05]} Qf8 {[%emt 0:00:02]} 43. Qa7 {[%emt 0:00:09]} f5 {[%emt 0:00:20]} 44. Ke2 {[%emt 0:00:41]} f4 {[%emt 0:00:09]} 45. Ng2 {[%emt 0:00:34]} fxg3 {[%emt 0:00:20]} 46. Qa1 {[%emt 0:00:02]} Qg8 {[%emt 0:00:23]} 47. Qc1 {[%emt 0:00:03]} Qa8 {[%emt 0:00:01]} 48. Qg5+ {[%emt 0:00:03]} Kf7 {[%emt 0:00:02]} 49. Qxg3 {[%emt 0:00:13]} Qa2+ {[%emt 0:00:01]} 50. Ke1 {[%emt 0:00:05]} Qxc4 {[%emt 0:00:08]} 51. Qg5 {[%emt 0:00:02]} Nf6 {[%emt 0:00:05]} 52. Ne3 {[%emt 0:00:15]} Qxb5 {[%emt 0:00:01]} 53. Nf5 {[%emt 0:00:06]} gxf5 {[%emt 0:00:05]} 54. exf5 {[%emt 0:00:01]} Qb1+ {[%emt 0:00:02]} 55. Kf2 {[%emt 0:00:03]} Qb2+ {[%emt 0:00:01]} 56. Kg3 {[%emt 0:00:06]} e4 {[%emt 0:00:01]} 57. Qg6+ {[%emt 0:00:01]} Ke7 {[%emt 0:00:04]} 58. Qg7+ {[%emt 0:00:02]} Kd8 {[%emt 0:00:01]} 59. Qf8+ {[%emt 0:00:01]} Kc7 {[%emt 0:00:02]} 60. Qe7+ {[%emt 0:00:01]} Nd7 {[%emt 0:00:01]} 61. f4 {[%emt 0:00:05]} Qc3+ {[%emt 0:00:05]} 62. Kh2 {[%emt 0:00:03]} Qd2+ {[%emt 0:00:02]} 63. Kh3 {[%emt 0:00:04]} Qe3+ {[%emt 0:00:02]} 0-1

[Event "Razuvaev Memorial 2020"]
[Site "Moscow"]
[Date "2020.11.06"]
[Round "5.2"]
[White "Tomashevsky, Evgeny"]
[Black "Nepomniachtchi, Ian"]
[Result "1-0"]
[ECO "A17"]
[WhiteElo "2681"]
[BlackElo "2785"]
[Annotator "ChessBase"]
[PlyCount "52"]
[EventDate "2020.11.06"]
[EventCountry "RUS"]
[SourceTitle "playchess.com"]
[Source "ChessBase"]
[SourceQuality "1"]
[TimeControl "300+3"]

1. Nf3 {[%emt 0:00:01]} d5 {[%emt 0:00:03]} 2. e3 {[%emt 0:00:03]} Nf6 {[%emt 0:00:05]} 3. c4 {[%emt 0:00:02]} e6 {[%emt 0:00:02]} 4. Nc3 {[%emt 0:00:05]} a6 {[%emt 0:00:01]} 5. b3 {[%emt 0:00:05]} Bd6 {[%emt 0:00:02]} 6. Bb2 {[%emt 0:00:07]} O-O {[%emt 0:00:01]} 7. g3 {[%emt 0:00:13]} c6 {[%emt 0:00:15]} 8. d4 {[%emt 0:00:41]} Nbd7 {[%emt 0:00:09]} 9. Bg2 {[%emt 0:00:05]} Ne4 {[%emt 0:00:18]} 10. O-O {[%emt 0:00:05]} f5 {[%emt 0:00:02]} 11. Ne2 {[%emt 0:00:02]} g5 {[%emt 0:00:03]} 12. Ne5 {[%emt 0:00:06]} Qe8 {[%emt 0:00:59]} 13. f3 {[%emt 0:00:42]} Nef6 {[%emt 0:00:03]} 14. Nc1 {[%emt 0:00:05]} g4 {[%emt 0:00:40]} 15. Ncd3 {[%emt 0:00:12]} gxf3 {[%emt 0:00:02]} 16. Bxf3 {[%emt 0:00:02]} Ne4 {[%emt 0:00:03]} 17. Bxe4 {[%emt 0:00:28]} dxe4 {[%emt 0:00:17]} 18. Nf4 {[%emt 0:00:08]} Nf6 {[%emt 0:00:05]} 19. Kh1 {[%emt 0:00:06]} b5 {[%emt 0:00:30]} 20. Rg1 {[%emt 0:00:14]} Bxe5 {[%emt 0:00:35]} 21. dxe5 {[%emt 0:00:02]} Ng4 {[%emt 0:00:00]} 22. Qe2 {[%emt 0:00:07]} Ra7 {[%emt 0:00:05]} 23. h3 {[%emt 0:00:10]} Nh6 {[%emt 0:00:01]} 24. Ba3 {[%emt 0:00:09]} Rff7 {[%emt 0:00:06]} 25. Qh5 {[%emt 0:00:03]} b4 {[%emt 0:00:50]} 26. Bxb4 {[%emt 0:00:10]} Qd8 {[%emt 0:00:16]} 1-0

[Event "Razuvaev Memorial 2020"]
[Site "Moscow"]
[Date "2020.11.06"]
[Round "5.3"]
[White "Kobalia, Mikhail"]
[Black "Lautier, Joel"]
[Result "1/2-1/2"]
[ECO "B30"]
[WhiteElo "2569"]
[BlackElo "2658"]
[Annotator "ChessBase"]
[PlyCount "110"]
[EventDate "2020.11.06"]
[EventCountry "RUS"]
[SourceTitle "playchess.com"]
[Source "ChessBase"]
[SourceQuality "1"]
[TimeControl "300+3"]

1. e4 {[%emt 0:00:01]} c5 {[%emt 0:00:02]} 2. Nf3 {[%emt 0:00:02]} Nc6 {[%emt 0:00:01]} 3. Bb5 {[%emt 0:00:02]} e6 {[%emt 0:00:03]} 4. O-O {[%emt 0:00:02]} Nge7 {[%emt 0:00:02]} 5. d4 {[%emt 0:00:01]} cxd4 {[%emt 0:00:02]} 6. Nxd4 {[%emt 0:00:01]} Ng6 {[%emt 0:00:03]} 7. Be2 {[%emt 0:00:03]} Qc7 {[%emt 0:00:05]} 8. c4 {[%emt 0:00:05]} a6 {[%emt 0:00:02]} 9. Nxc6 {[%emt 0:00:34]} dxc6 {[%emt 0:00:07]} 10. f4 {[%emt 0:00:04]} Bc5+ {[%emt 0:00:07]} 11. Kh1 {[%emt 0:00:02]} O-O {[%emt 0:00:23]} 12. e5 {[%emt 0:00:04]} f6 {[%emt 0:00:08]} 13. exf6 {[%emt 0:00:09]} gxf6 {[%emt 0:00:31]} 14. Nd2 {[%emt 0:00:31]} f5 {[%emt 0:00:15]} 15. Qe1 {[%emt 0:00:02]} Bd6 {[%emt 0:00:10]} 16. g3 {[%emt 0:00:17]} Bd7 {[%emt 0:00:11]} 17. b3 {[%emt 0:00:54]} Rae8 {[%emt 0:00:10]} 18. Bb2 {[%emt 0:00:19]} e5 {[%emt 0:00:08]} 19. fxe5 {[%emt 0:00:15]} Bxe5 {[%emt 0:00:02]} 20. Bxe5 {[%emt 0:00:07]} Qxe5 {[%emt 0:00:34]} 21. Bf3 {[%emt 0:00:08]} Qg7 {[%emt 0:00:13]} 22. Qf2 {[%emt 0:00:10]} f4 {[%emt 0:00:02]} 23. Rae1 {[%emt 0:00:12]} Ne5 {[%emt 0:00:17]} 24. Qg2 {[%emt 0:00:30]} fxg3 {[%emt 0:00:48]} 25. Qxg3 {[%emt 0:00:09]} Qxg3 {[%emt 0:00:12]} 26. hxg3 {[%emt 0:00:00]} Nxf3 {[%emt 0:00:05]} 27. Rxe8 {[%emt 0:00:02]} Rxe8 {[%emt 0:00:06]} 28. Nxf3 {[%emt 0:00:11]} Re2 {[%emt 0:00:03]} 29. Re1 {[%emt 0:00:04]} Rxa2 {[%emt 0:00:17]} 30. Re7 {[%emt 0:00:02]} Bf5 {[%emt 0:00:01]} 31. Nd4 {[%emt 0:00:06]} Bg6 {[%emt 0:00:07]} 32. Rxb7 {[%emt 0:00:03]} Be4+ {[%emt 0:00:14]} 33. Kg1 {[%emt 0:00:04]} Rg2+ {[%emt 0:00:04]} 34. Kf1 {[%emt 0:00:02]} Rxg3 {[%emt 0:00:01]} 35. Re7 {[%emt 0:00:06]} Rg4 {[%emt 0:00:03]} 36. Kf2 {[%emt 0:00:14]} h5 {[%emt 0:00:04]} 37. Nf3 {[%emt 0:00:25]} Rf4 {[%emt 0:00:05]} 38. Ke3 {[%emt 0:00:01]} Rxf3+ {[%emt 0:00:05]} 39. Kxe4 {[%emt 0:00:01]} Rxb3 {[%emt 0:00:02]} 40. Rc7 {[%emt 0:00:09]} h4 {[%emt 0:00:25]} 41. Rxc6 {[%emt 0:00:01]} a5 {[%emt 0:00:01]} 42. c5 {[%emt 0:00:18]} h3 {[%emt 0:00:06]} 43. Rh6 {[%emt 0:00:03]} Kg7 {[%emt 0:00:04]} 44. Rh5 {[%emt 0:00:01]} Kf6 {[%emt 0:00:04]} 45. c6 {[%emt 0:00:03]} Ke6 {[%emt 0:00:02]} 46. Rh6+ {[%emt 0:00:03]} Ke7 {[%emt 0:00:01]} 47. Kd5 {[%emt 0:00:01]} Rb5+ {[%emt 0:00:12]} 48. Kc4 {[%emt 0:00:02]} Rb4+ {[%emt 0:00:03]} 49. Kc5 {[%emt 0:00:05]} Rb3 {[%emt 0:00:05]} 50. Rh7+ {[%emt 0:00:06]} Kd8 {[%emt 0:00:04]} 51. Rh8+ {[%emt 0:00:05]} Kc7 {[%emt 0:00:02]} 52. Rh7+ {[%emt 0:00:01]} Kc8 {[%emt 0:00:01]} 53. Rh8+ {[%emt 0:00:01]} Kc7 {[%emt 0:00:01]} 54. Rh7+ {[%emt 0:00:00]} Kc8 {[%emt 0:00:01]} 55. Rh8+ {[%emt 0:00:01]} Kc7 {[%emt 0:00:00]} 1/2-1/2

[Event "Razuvaev Memorial 2020"]
[Site "Moscow"]
[Date "2020.11.06"]
[Round "5.4"]
[White "Gelfand, Boris"]
[Black "Motylev, Alexander"]
[Result "1-0"]
[ECO "E11"]
[WhiteElo "2693"]
[BlackElo "2618"]
[Annotator "ChessBase"]
[PlyCount "57"]
[EventDate "2020.11.06"]
[EventCountry "RUS"]
[SourceTitle "playchess.com"]
[Source "ChessBase"]
[SourceQuality "1"]
[TimeControl "300+3"]

1. d4 {[%emt 0:00:01]} Nf6 {[%emt 0:00:02]} 2. c4 {[%emt 0:00:02]} e6 {[%emt 0:00:01]} 3. Nf3 {[%emt 0:00:01]} d5 {[%emt 0:00:04]} 4. g3 {[%emt 0:00:00]} Bb4+ {[%emt 0:00:01]} 5. Bd2 {[%emt 0:00:02]} Be7 {[%emt 0:00:01]} 6. Bg2 {[%emt 0:00:02]} O-O {[%emt 0:00:01]} 7. Qc2 {[%emt 0:00:01]} Nbd7 {[%emt 0:00:02]} 8. Nc3 {[%emt 0:00:02]} dxc4 {[%emt 0:00:10]} 9. Rd1 {[%emt 0:00:12]} c6 {[%emt 0:00:19]} 10. h4 {[%emt 0:00:05]} b5 {[%emt 0:00:12]} 11. Ne5 {[%emt 0:00:01]} Nxe5 {[%emt 0:00:07]} 12. dxe5 {[%emt 0:00:02]} Nd5 {[%emt 0:00:01]} 13. Ne4 {[%emt 0:00:01]} f5 {[%emt 0:00:49]} 14. exf6 {[%emt 0:00:01]} gxf6 {[%emt 0:00:05]} 15. b3 {[%emt 0:00:19]} cxb3 {[%emt 0:00:03]} 16. axb3 {[%emt 0:00:04]} Qb6 {[%emt 0:00:13]} 17. O-O {[%emt 0:00:16]} e5 {[%emt 0:00:15]} 18. Rc1 {[%emt 0:00:43]} Bg4 {[%emt 0:00:03]} 19. Bh6 {[%emt 0:00:21]} Nb4 {[%emt 0:00:49]} 20. Bxf8 {[%emt 0:00:30]} Nxc2 {[%emt 0:00:12]} 21. Bxe7 {[%emt 0:00:02]} Nd4 {[%emt 0:00:03]} 22. Nxf6+ {[%emt 0:00:16]} Kf7 {[%emt 0:00:01]} 23. Bc5 {[%emt 0:00:13]} Nxe2+ {[%emt 0:00:02]} 24. Kh2 {[%emt 0:00:02]} Qc7 {[%emt 0:00:17]} 25. Nxg4 {[%emt 0:00:07]} Nxc1 {[%emt 0:00:01]} 26. Rxc1 {[%emt 0:00:03]} a5 {[%emt 0:00:06]} 27. Be3 {[%emt 0:00:31]} Ra6 {[%emt 0:02:00]} 28. Bxc6 {[%emt 0:00:11]} Kg7 {[%emt 0:00:17]} 29. Bh6+ {[%emt 0:00:30]} 1-0